Cogmind - Beta 15 @@@ ROGUE MODE // 2025.08.10 @ 18:01:47 Player: Tuja Result: Destroyed by P-70 Sage with Tesla Rifle Performance ------------- Evolutions (5) 2500 Regions Visited (8) 1600 Robots Destroyed (108) 540 Value Destroyed (3942) 3942 Prototype IDs (10) 200 Alien Tech Used (0) 0 Bonus (1447) 1447 TOTAL SCORE: 10229 Bonus ------- High Alert Combat Kills 128 Follower Combat Kills 519 Registered with UFD 300 Met Optimus in HQ 500 Cogmind --------- Core Integrity 0/1000 Matter 221/300 Energy 213/310 System Corruption 28% Temperature Hot (220) Movement Walking (190) Ox1 Location -5/Factory Parts ------- > --- POWER (1) -------- Fission Core > --- PROPULSION (4) --- Carbon-fiber Leg Flexi-carbon Leg > --- UTILITY (7) ------ Large Storage Unit Machine Analyzer Targeting Computer > --- WEAPON (5) ------- Beamcaster Autogun Helical Railgun > --- INVENTORY (15) --- Ion Engine Light Nuclear Core Fission Core Medium Treads Carbon-fiber Leg Carbon-fiber Leg Flexi-carbon Leg Datajack Peak State ------------ > --- POWER ------------ Fission Core > --- PROPULSION ------- Carbon-fiber Leg Flexi-carbon Leg Myomer Leg Myomer Leg > --- UTILITY ---------- Improved Heat Sink Large Storage Unit Experimental Sensor Array Targeting Computer Transmission Jammer Propulsion Shielding Layered Medium Armor Plating > --- WEAPON ----------- High-powered Shock Rifle Beamcaster Gauss Rifle Helical Railgun Bore Cannon > --- INVENTORY -------- Ion Engine Fission Core Medium Treads Flexi-carbon Leg Flexi-carbon Leg Targeting Computer Phase Shifter High-powered Shock Rifle Improved Arc Projector Heavy Assault Rifle Datajack [Rating: 83] Favorites ----------- Power Light Ion Engine Engine Light Ion Engine Power Core Fission Core Propulsion Aluminum Leg Treads Light Treads Leg Aluminum Leg Flight Unit Improved Flight Unit Utility Hacking Suite Device Experimental Sensor Array Storage High-capacity Matter Pod Processor Improved Targeting Computer Hackware Hacking Suite Protection Improved Light Armor Plating Weapon Light Assault Rifle Energy Gun Heavy Laser Ballistic Gun Light Assault Rifle Ballistic Cannon Light Cannon Special Weapon Plasma Cutter Special Melee Weapon Datajack Build | -11 -10 -9 -9 -9 -9 -6 -6 -5 ------- Run | Yrd Mat Mat Sto Rec Scr Fac Ext Fac Slots Evolved 10 | . . 2 . . . 6 . 2 Power . | . . . . . . . . . Propulsion 2 | . . 1 . . . 1 . . Utility 5 | . . 1 . . . 3 . 1 Weapon 3 | . . . . . . 2 . 1 Parts Attached 97 | 6 2 4 14 . 1 20 5 45 Power 11 | 1 . 1 2 . . 2 . 5 Engine 9 | 1 . 1 2 . . 2 . 3 Core 2 | . . . . . . . . 2 Reactor . | . . . . . . . . . Propulsion 29 | 2 . 1 7 . . 6 1 12 Treads 4 | . . . 3 . . . . 1 Leg 24 | 2 . 1 3 . . 6 1 11 Wheel . | . . . . . . . . . Hover . | . . . . . . . . . Flight 1 | . . . 1 . . . . . Utility 25 | 1 2 1 1 . 1 5 3 11 Device 6 | . . . . . . 2 . 4 Storage 5 | 1 2 . . . 1 . 1 . Processor 5 | . . . . . . 1 . 4 Hackware 1 | . . 1 . . . . . . Protection 8 | . . . 1 . . 2 2 3 Artifact . | . . . . . . . . . Weapon 32 | 2 . 1 4 . . 7 1 17 Energy Gun 8 | . . . . . . 2 . 6 Energy Cannon . | . . . . . . . . . Ballistic Gun 19 | 2 . . 2 . . 4 1 10 Ballistic Cannon 3 | . . 1 1 . . . . 1 Launcher . | . . . . . . . . . Special Weapon 1 | . . . 1 . . . . . Impact Weapon . | . . . . . . . . . Slashing Weapon . | . . . . . . . . . Piercing Weapon . | . . . . . . . . . Special Melee Weapon 1 | . . . . . . 1 . . Unidentified Prototypes 2 | . . . 1 . . . . 1 Corrupted Parts 5 | . . . . . . . . 5 System Corruption 20 | . . . . . . . . 20 Parts Lost 68 | . . 3 9 . . 14 1 41 Power 7 | . . 1 2 . . 2 . 2 Propulsion 20 | . . 1 3 . . 5 . 11 Utility 14 | . . . 1 . . 2 . 11 Weapon 27 | . . 1 3 . . 5 1 17 Highest Loss Streak 21 | . . 3 2 . . 8 1 21 To Critical Strikes 2 | . . . . . . . . 2 Average Backups 9 | 5 7 5 7 8 8 11 13 11 Power 2 | . 1 . 2 2 2 2 3 2 Propulsion 1 | 2 2 1 . 1 . 2 3 2 Utility 1 | . . . . 2 2 3 2 1 Weapon 2 | 2 2 2 1 1 1 1 4 3 Tool/Special . | . . . . . . . . . Unused Backups 21 | . 7 . 1 1 . 7 . 5 Power 2 | . . . . . . . . 2 Propulsion 12 | . 5 . 1 . . 3 . 3 Utility 3 | . . . . 1 . 2 . . Weapon 4 | . 2 . . . . 2 . . Tool/Special . | . . . . . . . . . Average Slot Usage (%) 91 | . 98 94 91 100 100 78 93 86 Engine 7 | . 14 9 10 11 11 4 6 2 Treads 2 | . . . 12 . . . . . Leg 23 | . 28 30 13 33 33 21 26 20 Device 1 | . . . . . . 3 . 6 Storage 16 | . 26 22 20 22 22 13 12 8 Processor 2 | . . . . . . 4 6 7 Hackware 7 | . . 11 11 11 11 6 6 2 Protection 3 | . . . 1 . . 3 6 7 Energy Gun 2 | . . . . . . 4 6 5 Ballistic Gun 14 | . 28 20 10 11 11 11 19 16 Ballistic Cannon 5 | . . 2 11 11 11 2 . . Peak Build Rating 83 | 6 8 11 13 13 15 56 64 83 Average Rating 31 | 2 7 10 10 13 13 38 59 63 On Entrance 19 | . 6 8 10 13 13 15 56 58 Naked Turns 43 | . . . . . . . . 43 Heaviest Build 71 | 10 14 18 18 16 31 64 68 71 Greatest Support 85 | 20 20 30 60 33 33 64 64 85 Greatest Overweight (x) 10 | 2 . . 1 . . 1 1 10 Average Overweight (x) . | 1 . . . . . . . . Largest Inventory Capacity 15 | 8 8 8 8 8 15 15 15 15 Average Capacity 11 | 7 8 8 8 8 10 15 15 14 Most Carried 15 | 8 8 7 8 8 13 15 15 15 Average Carried 10 | 5 7 5 7 7 9 12 14 12 Final Capacity 15 | 8 8 8 8 8 15 15 15 15 Final Carried 15 | 4 8 4 8 8 13 15 14 8 Class Distribution -------------------- 43% | Scavenger-Mutant 24% | Scavenger-Gunner 18% | Mutant 12% | Scavenger-Tank Dominant Class ---------------- Mutant | -10/Materials Mutant | -9/Materials Scavenger-Mutant | -9/Storage Scavenger-Mutant | -9/Recycling Scavenger-Mutant | -9/Scraptown Scavenger-Gunner | -6/Factory Scavenger-Gunner | -6/Extension Scavenger-Gunner | -5/Factory Resources | -11 -10 -9 -9 -9 -9 -6 -6 -5 ----------- Run | Yrd Mat Mat Sto Rec Scr Fac Ext Fac Matter Collected 3532 | 228 353 41 587 . . 521 584 1218 Remotely . | . . . . . . . . . Salvage Created 4876 | . 381 46 1025 . . 1156 502 1766 Parts 245 | . 29 4 66 . . 43 17 86 Haulers Intercepted 1 | . 1 . . . . . . . Recyclers Shooed 14 | . 6 . 3 . . 1 . 4 Parts Field Recycled . | . . . . . . . . . Retrieved Matter . | . . . . . . . . . Parts Self-Destructed . | . . . . . . . . . Prevented . | . . . . . . . . . Kills | -11 -10 -9 -9 -9 -9 -6 -6 -5 ------- Run | Yrd Mat Mat Sto Rec Scr Fac Ext Fac Combat Hostiles Destroyed 90 | . 13 1 24 . . 16 8 28 Guns 64 | . 13 1 10 . . 11 8 21 Cannons 21 | . . . 14 . . 5 . 2 AOE 4 | . . . . . . . . 4 Classes Destroyed 14 | . 4 1 4 . . 1 1 3 Builder 1 | . . . . . . . . 1 Tunneler 1 | . . . . . . . 1 . Hauler 1 | . 1 . . . . . . . Recycler 9 | . . . 3 . . 4 . 2 Mechanic 1 | . . . 1 . . . . . Operator 2 | . 1 . 1 . . . . . Watcher 3 | . . . 1 . . . . 2 Swarmer 26 | . 8 . 7 . . 4 . 7 Grunt 38 | . 5 . 9 . . 9 2 13 Brawler 1 | . . . . . . . . 1 Duelist 2 | . . . 1 . . 1 . . Sentry 17 | . . 1 7 . . 1 6 2 Hunter 1 | . . . . . . . . 1 Programmer 5 | . . . . . . 1 . 4 Best Kill Streak 10 | . 8 1 10 . . 3 2 5 Combat Bots Only 7 | . 7 1 7 . . 3 2 5 Max Kills in Single Turn 4 | . 1 1 2 . . 2 1 4 Gunslinging . | . . . . . . . . . Exploded 3 | . . . . . . . . 3 Melee . | . . . . . . . . . Uniques/NPCs Destroyed . | . . . . . . . . . Combat | -11 -10 -9 -9 -9 -9 -6 -6 -5 -------- Run | Yrd Mat Mat Sto Rec Scr Fac Ext Fac Hostile Shots Fired 884 | . 66 20 122 . . 223 49 404 Missed 218 | . 19 2 27 . . 72 16 82 Hits 666 | . 47 18 95 . . 151 33 322 Melee 10 | . . . 4 . . 6 . . Projectile 656 | . 47 18 91 . . 145 33 322 AOE 8 | . . . . . . . . 8 Critical Strikes 28 | . . 1 1 . . 9 . 17 Actively Blocked 1 | . . . . . . . . 1 Part Disruptions 5 | . . . . . . . . 5 Damage Taken 11021 | . 399 248 1193 . . 2625 459 6097 Core 1818 | . 61 90 246 . . 408 . 1013 Absorbed by Shields . | . . . . . . . . . Redirected to Shielding 48 | . . . . . . . . 48 Regen/Repaired (Parts) 449 | . . . 97 . 342 . . 10 Core Remaining (%) 60 | 100 75 . . . 16 . 52 . Volleys Fired 304 | . 52 7 84 . . 66 20 75 Largest 5 | . 2 2 2 . . 4 4 5 Hottest 249 | . 40 50 50 . . 152 160 249 Shots Fired 824 | . 104 13 163 . . 167 79 298 Gun 698 | . 104 11 80 . . 136 79 288 Cannon 120 | . . 2 80 . . 28 . 10 Launcher . | . . . . . . . . . Special 6 | . . . 3 . . 3 . . Kinetic 680 | . 104 13 160 . . 113 59 231 Thermal 127 | . . . 3 . . 54 20 50 Explosive . | . . . . . . . . . Electromagnetic 17 | . . . . . . . . 17 Robot Hit Streak 14 | . 7 10 13 . . 12 13 14 Robot Miss Streak 5 | . 5 1 3 . . 4 4 4 Penetration Max 1 | . . . . . . 1 1 1 Secondary Targets 11 | . 4 . . . . . 2 5 Max Gunslinging Chain 1 | . 1 . . . . . 1 1 Shots Hit Robots 545 | . 58 11 103 . . 105 71 197 Core Hits 303 | . 31 3 54 . . 71 41 103 Critical Kills 9 | . 1 . . . . . 2 6 Critical Parts Destroyed 18 | . . . . . . . 1 17 Critical Strikes 40 | . 1 . 2 . . 4 5 28 Burn 4 | . . . . . . 1 1 2 Destroy 30 | . 1 . . . . . 4 25 Blast 5 | . . . 2 . . 3 . . Corrupt 1 | . . . . . . . . 1 Melee Attacks 7 | . . . . . . . 7 . Impact . | . . . . . . . . . Slashing . | . . . . . . . . . Piercing . | . . . . . . . . . Sneak Attacks 7 | . . . . . . . 7 . Combat Hostiles . | . . . . . . . . . Follow-up Attacks . | . . . . . . . . . Damage Inflicted 9978 | . 483 112 1400 . . 1977 1358 4648 Guns 7879 | . 483 93 474 . . 1538 1358 3933 Cannons 1475 | . . 18 917 . . 427 . 113 Explosions 593 | . . . . . . . . 593 Melee . | . . . . . . . . . Ramming 31 | . . 1 9 . . 12 . 9 Kinetic 7414 | . 483 111 1391 . . 1289 1028 3112 Thermal 2305 | . . . . . . 676 330 1299 Explosive . | . . . . . . . . . Electromagnetic 228 | . . . . . . . . 228 Impact . | . . . . . . . . . Slashing . | . . . . . . . . . Piercing . | . . . . . . . . . Highest Corruption 28 | . . . . . . . . 28 Average Corruption 12 | . . . . . . . . 12 Corruption Purged . | . . . . . . . . . Corruption Blocked . | . . . . . . . . . Effects 45 | . . . . . . . . 45 Message Errors 5 | . . . . . . . . 5 Matter Fused 12 | . . . . . . . . 12 Heat Flow Errors 4 | . . . . . . . . 4 Energy Discharges 5 | . . . . . . . . 5 Parts Rejected 4 | . . . . . . . . 4 Data Loss (minor) 6 | . . . . . . . . 6 Data Loss (major) 2 | . . . . . . . . 2 Misfires 1 | . . . . . . . . 1 Weapon Failures 6 | . . . . . . . . 6 Overload Shots . | . . . . . . . . . Overflow Damage 100 | . . . . . . . . 100 Projectiles . | . . . . . . . . . Explosions 100 | . . . . . . . . 100 Melee . | . . . . . . . . . Knockbacks 26 | . . . 10 . . 14 . 2 Impact 1 | . . . . . . 1 . . Kinetic 24 | . . . 10 . . 12 . 2 Secondary 1 | . . . . . . 1 . . Self-Inflicted Damage 50 | . . . . . . . . 50 Shots 2 | . . . . . . . . 2 Rammed 5 | . . . 2 . . . . 3 Targets Rammed 16 | 1 . 1 5 . . 4 1 4 Kicked 11 | 1 . 1 3 . . 4 1 1 Crushed . | . . . . . . . . . Highest Temperature 495 | . 12 41 54 . . 228 366 495 Average Temperature 106 | . 6 14 11 . . 79 148 160 Received Heat Transfer 2965 | . 60 105 420 . . 1092 117 1171 Effects 20 | . . . . . . 3 4 13 Shutdowns 3 | . . . . . . . 1 2 Energy Bleed 4 | . . . . . . . 1 3 Interference 11 | . . . . . . 3 2 6 Short Circuit 1 | . . . . . . . . 1 Damage (minor) 1 | . . . . . . . . 1 Siege Activations . | . . . . . . . . . Martial Activations . | . . . . . . . . . Shielding Activations . | . . . . . . . . . Robots Disrupted . | . . . . . . . . . Combat Hostiles . | . . . . . . . . . Robots Corrupted 1 | . . . . . . . . 1 Combat Hostiles 1 | . . . . . . . . 1 Parts Fried 1 | . . . . . . . . 1 Impact Corruptions . | . . . . . . . . . Robots Melted . | . . . . . . . . . Combat Hostiles . | . . . . . . . . . Parts Melted 3 | . . . . . . . 1 2 Heat Transferred 3865 | . . . . . . 1369 703 1793 Parts Sabotaged . | . . . . . . . . . Parts Stolen . | . . . . . . . . . Parts Stripped . | . . . . . . . . . Power Chain Reactions 1 | . . . . . . . . 1 Alert | -11 -10 -9 -9 -9 -9 -6 -6 -5 ------- Run | Yrd Mat Mat Sto Rec Scr Fac Ext Fac Maximum Alert Level 2 | . 1 . 1 . . . 1 2 Low Security (%) 74 | 100 72 100 91 100 . 100 96 27 Level 1 15 | . 27 . 8 . . . 3 35 Level 2 10 | . . . . . . . . 37 Level 3 . | . . . . . . . . . Level 4 . | . . . . . . . . . Level 5 . | . . . . . . . . . High Security . | . . . . . . . . . Max Security . | . . . . . . . . . Peak Influence 568 | . 312 127 258 49 . 160 257 568 Initial 127 | . . 127 12 49 . . 62 125 Average 139 | . 137 28 95 7 . 45 37 315 Influence Increases 3831 | . 442 30 819 19 . 532 447 1542 Destroy 0b10 Robot/C 2220 | . 260 20 540 . . 320 300 780 Destroy 0b10 Robot/NC 110 | . 10 . 35 . . 20 15 30 Destroy Leader 440 | . 52 10 132 . . 70 12 164 Allied During Kill 138 | . . . 11 . . . 93 34 Successful Hack 55 | . . . 8 19 . . 24 4 Disable Machine 165 | . . . 45 . . . . 120 Destroy Structure 178 | . . . 3 . . 2 3 170 Lose Combat Pursuer 525 | . 120 . 45 . . 120 . 240 Influence Decreases 3365 | . 140 302 721 147 . 404 319 1332 Entered New Map 469 | . . 175 18 79 . . 66 131 Time Decay 1589 | . 140 . 431 39 . 264 221 494 Lost Part 642 | . . . 82 . . 140 10 410 Lost Ally 222 | . . . 40 . . . 22 160 Purge Threat 443 | . . 127 150 29 . . . 137 Squads Dispatched 23 | . 3 . 3 . . 4 1 12 Investigation 6 | . 1 . . . . . . 5 Extermination 5 | . . . . . . 1 . 4 Reinforcement 7 | . 2 . 1 . . 1 1 2 Assault 3 | . . . 2 . . . . 1 Garrison 2 | . . . . . . 2 . . Intercept . | . . . . . . . . . Searches Triggered . | . . . . . . . . . Construction Impeded 2 | . . . . . . . 1 1 Haulers Reinforced . | . . . . . . . . . Active Scanning Responses . | . . . . . . . . . Cargo Convoy Interrupts 1 | . . . . . . . . 1 Stealth | -11 -10 -9 -9 -9 -9 -6 -6 -5 --------- Run | Yrd Mat Mat Sto Rec Scr Fac Ext Fac Distress Signals 12 | . 3 . . . . . 3 6 Communications Jammed 1 | . . . . . . . . 1 Distress Signals 1 | . . . . . . . . 1 Times Spotted 166 | . 23 5 33 . . 25 19 61 Peak Tracking Total 12 | . 5 4 10 . . 8 6 12 Tactical Retreats 22 | . 5 . 3 . . 4 . 10 Traps | -11 -10 -9 -9 -9 -9 -6 -6 -5 ------- Run | Yrd Mat Mat Sto Rec Scr Fac Ext Fac Traps Triggered 4 | . 1 . . . . . . 3 Indirectly . | . . . . . . . . . Trap Hack Attempts 27 | . . . . . . 27 . . Triggered . | . . . . . . . . . Disarmed 2 | . . . . . . 2 . . Reprogrammed . | . . . . . . . . . Reused . | . . . . . . . . . Traps Extracted . | . . . . . . . . . Installed . | . . . . . . . . . Triggered . | . . . . . . . . . Machines | -11 -10 -9 -9 -9 -9 -6 -6 -5 ---------- Run | Yrd Mat Mat Sto Rec Scr Fac Ext Fac Machines Disabled 11 | . . . 3 . . . . 8 Max in Single Turn 5 | . . . 1 . . . . 5 Machines Repaired . | . . . . . . . . . Machines Dismantled . | . . . . . . . . . Machines Sabotaged . | . . . . . . . . . Overloaded Fab Kills . | . . . . . . . . . Hacking | -11 -10 -9 -9 -9 -9 -6 -6 -5 --------- Run | Yrd Mat Mat Sto Rec Scr Fac Ext Fac Machines Accessed 27 | . 1 1 6 2 4 3 3 7 Terminals 15 | . 1 1 5 2 . . 3 3 Fabricators . | . . . . . . . . . Repair Stations 1 | . . . 1 . . . . . Recycling Units 5 | . . . . . . 1 . 4 Scanalyzers 1 | . . . . . . 1 . . Garrison Access 1 | . . . . . . 1 . . Total Hacks 68 | . 3 3 17 4 18 7 3 13 Successful 45 | . 2 2 8 4 18 2 3 6 Failed 23 | . 1 1 9 . . 5 . 7 Catastrophic 4 | . . . 2 . . 1 . 1 Database Lockouts . | . . . . . . . . . Manual 22 | . 1 . 6 2 . 3 . 10 Terminals 33 | . 3 3 13 4 . . 3 7 Fabricators . | . . . . . . . . . Repair Stations 4 | . . . 4 . . . . . Recycling Units 9 | . . . . . . 3 . 6 Scanalyzers 2 | . . . . . . 2 . . Garrison Access 2 | . . . . . . 2 . . Terminal Hacks 35 | . 2 2 4 4 18 . 3 2 Record 10 | . . . . . 10 . . . Robot Analysis 8 | . . . . . 8 . . . Prototype ID Bank 1 | . 1 . . . . . . . Open Door 2 | . . . . . . . 2 . Branch Access Points 1 | . . . 1 . . . . . Alert Level 1 | . . . 1 . . . . . Unreport Threat 5 | . . 1 1 2 . . . 1 Dispatch Records 1 | . 1 . . . . . . . Transport Status 1 | . . 1 . . . . . . Zone Layout 5 | . . . 1 2 . . 1 1 Fabricator Hacks . | . . . . . . . . . Repair Station Hacks 4 | . . . 4 . . . . . Scan Component 2 | . . . 2 . . . . . Repair 2 | . . . 2 . . . . . Recycling Unit Hacks . | . . . . . . . . . Scanalyzer 2 | . . . . . . 2 . . Insert Component 1 | . . . . . . 1 . . Analyze 1 | . . . . . . 1 . . Garrison Access Hacks . | . . . . . . . . . Unauthorized Hacks 4 | . . . . . . . . 4 Terminals . | . . . . . . . . . Fabricators . | . . . . . . . . . Repair Stations . | . . . . . . . . . Recycling Units 4 | . . . . . . . . 4 Fedlink 3 | . . . . . . . . 3 Scrapoids 1 | . . . . . . . . 1 Scanalyzers . | . . . . . . . . . Garrison Access . | . . . . . . . . . Data Cores Recovered . | . . . . . . . . . Used . | . . . . . . . . . Hacking Detections 16 | . 1 1 5 2 . 2 1 4 Full Trace Events . | . . . . . . . . . Feedback Events . | . . . . . . . . . Feedback Blocked . | . . . . . . . . . Robot Schematics Acquired . | . . . . . . . . . Robots Built . | . . . . . . . . . Authchips . | . . . . . . . . . Time . | . . . . . . . . . Total Robot Build Rating . | . . . . . . . . . Part Schematics Acquired 1 | . . . . . . 1 . . Parts Built . | . . . . . . . . . Authchips . | . . . . . . . . . Time . | . . . . . . . . . Total Part Build Rating . | . . . . . . . . . Parts Repaired 2 | . . . 2 . . . . . Time 52 | . . . 52 . . . . . Parts Recycled . | . . . . . . . . . Recycled Matter . | . . . . . . . . . Retrieved Matter . | . . . . . . . . . Retrieved Components . | . . . . . . . . . Parts Scanalyzed 1 | . . . . . . 1 . . Part Schematics Acquired 1 | . . . . . . 1 . . Parts Damaged 1 | . . . . . . 1 . . Bothacking | -11 -10 -9 -9 -9 -9 -6 -6 -5 ------------ Run | Yrd Mat Mat Sto Rec Scr Fac Ext Fac Used RIF Installer . | . . . . . . . . . Robots Hacked . | . . . . . . . . . Non-combat . | . . . . . . . . . Combat . | . . . . . . . . . Robot Hacks Applied . | . . . . . . . . . Relay Couplers Released 2 | . . . . . . . . 2 Machine Destruction 2 | . . . . . . . . 2 Fabnet Peak Effective % . | . . . . . . . . . Robots Rewired 7 | . . . . . . . 7 . Allies Hacked . | . . . . . . . . . Hacks Repelled . | . . . . . . . . . Allies | -11 -10 -9 -9 -9 -9 -6 -6 -5 -------- Run | Yrd Mat Mat Sto Rec Scr Fac Ext Fac Total Allies 15 | . . . 2 . . . 8 5 Largest Group 5 | . . . 2 . . . 5 5 Highest-Rated Group 288 | . . . 62 . . . 288 235 Highest-Rated Ally 159 | . . . 31 . . . 159 47 Total Orders . | . . . . . . . . . Ally Attacks 107 | . . . 13 . . . 44 50 Total Damage 2965 | . . . 229 . . . 1301 1435 Kills 26 | . . . 4 . . . 9 13 Allies Corrupted . | . . . . . . . . . Allies Melted 1 | . . . . . . . . 1 Intel | -11 -10 -9 -9 -9 -9 -6 -6 -5 ------- Run | Yrd Mat Mat Sto Rec Scr Fac Ext Fac Active Infowar (turns) 594 | . . . . . . 97 10 487 Sensors 572 | . . . . . . 97 10 465 Machine Analysis 26 | . . . . . . . . 26 Jamming 440 | . . . . . . . . 440 Robot Analysis Total 8 | . . . . . 8 . . . Derelict Logs Recovered . | . . . . . . . . . Drone Launches . | . . . . . . . . . Drone Recoveries . | . . . . . . . . . Exploration | -11 -10 -9 -9 -9 -9 -6 -6 -5 ------------- Run | Yrd Mat Mat Sto Rec Scr Fac Ext Fac Turns Passed 6216 | 97 389 93 1306 269 1297 745 613 1407 Spaces Moved 3428 | 59 187 54 541 213 1075 306 278 715 Core 133 | 53 . . . . . . . 80 Treads 238 | . . . 229 . . . . 9 Legs 3057 | 6 187 54 312 213 1075 306 278 626 Wheels . | . . . . . . . . . Hover . | . . . . . . . . . Flight . | . . . . . . . . . Fastest Speed 50 | 50 120 120 120 120 120 120 125 50 Average Speed 132 | 136 120 120 156 120 120 142 154 126 Slowest Speed 550 | 150 120 120 190 120 120 200 195 550 Overloaded Moves . | . . . . . . . . . Propulsion Burnouts . | . . . . . . . . . Robots Hopped . | . . . . . . . . . Potential Cave-ins . | . . . . . . . . . Cave-ins Triggered . | . . . . . . . . . Exploration Rate (%) 34 | 5 44 6 58 38 82 10 43 25 Regions Visited 8 Branch Regions 4 Pre-discovered Areas 3 | . . . . . 2 . . 1 Known Exits Taken 1 | . . . 1 . . . . . Unknown Exits Taken 7 | 1 1 1 . 1 1 1 1 . Scrap Searched 1 | . . . . . 1 . . . Spaces Dug . | . . . . . . . . . Terrain Destroyed 69 | . . . . . . 1 2 66 Melee . | . . . . . . . . . Projectile 24 | . . . . . . 1 2 21 AOE 43 | . . . . . . . . 43 Terrain Rammed . | . . . . . . . . . Walls Destroyed . | . . . . . . . . . Machines Disabled . | . . . . . . . . . Actions | -11 -10 -9 -9 -9 -9 -6 -6 -5 --------- Run | Yrd Mat Mat Sto Rec Scr Fac Ext Fac Total 4509 | 75 272 71 845 227 1082 490 408 1039 Wait 430 | . 11 6 166 13 . 29 71 134 Move 3421 | 59 186 53 540 212 1074 305 277 715 Hop . | . . . . . . . . . Pick Up 130 | 10 13 . 21 1 5 29 4 47 Fast Attach . | . . . . . . . . . Attach 98 | 6 1 4 10 . . 20 3 54 Detach 4 | . . . . . . 1 . 3 Swap 27 | . 1 . 14 . 1 2 5 4 Drop 29 | . 8 . 5 1 2 7 3 3 Fire 304 | . 52 7 84 . . 66 20 75 Melee 7 | . . . . . . . 7 . Ram 3 | . . . . . . . . 3 Kick 10 | . . 1 3 . . 4 1 1 Crush 2 | . . . 2 . . . . . Escape Stasis . | . . . . . . . . . Rewire 17 | . . . . . . . 17 . Trap 27 | . . . . . . 27 . . Miscellaneous . | . . . . . . . . . Route ------- -11/Scrapyard -10/Materials -9/Materials -9/Storage -9/Recycling -9/Scraptown (discovered 2 exits: *Fac x2) -6/Factory -6/Extension -5/Factory History --------- Turn | Location | Event 19 | -11/Scrapyard | Discovered new exit (range 15) 98 | -11/Scrapyard | Entered Materials 272 | -10/Materials | Destroyed 7 combat bots 316 | -10/Materials | Build established: Mutant 475 | -10/Materials | Discovered new exit (range 4) 487 | -10/Materials | Entered another Materials area 487 | -9/Materials | Evolved 2 slots: Propulsion x1, Utility x1 547 | -9/Materials | Discovered new exit (range 5) 580 | -9/Materials | Entered Storage 597 | -9/Storage | Lost 3 parts (1p1n1w) 1136 | -9/Storage | Repaired Aluminum Leg 1163 | -9/Storage | Repaired Lgt. Armor Plating 1255 | -9/Storage | Build established: Scavenger-Mutant 1356 | -9/Storage | Met a pair of Derelict thieves 1471 | -9/Storage | Core integrity fell below 50% 1539 | -9/Storage | Destroyed 7 combat bots 1588 | -9/Storage | Identified exit to Recycling 1799 | -9/Storage | Core integrity fell below 20% 1882 | -9/Storage | Used back door to open Recycling access 1886 | -9/Storage | Entered Recycling 2125 | -9/Recycling | Scanned before Scraplab entrance 2142 | -9/Recycling | Entered Scraplab 2152 | -9/Recycling | Discovered new exit (range 3) 2155 | -9/Recycling | Entered Scraptown 2334 | -9/Scraptown | Discovered new exit (range 13) 2428 | -9/Scraptown | Visited Shadow of the Wyrm 2442 | -9/Scraptown | Visited Bundlers 2466 | -9/Scraptown | Visited Fellowship of the Rings 2519 | -9/Scraptown | Visited CR-KLE's Repair Center 2527 | -9/Scraptown | CR-KLE repaired 8 parts 2629 | -9/Scraptown | Visited The Evicted 2650 | -9/Scraptown | Visited TADAMA 2665 | -9/Scraptown | Heard Great Nut preacher, LISTEN AND RECITE! 2681 | -9/Scraptown | Visited UFD Registry 2681 | -9/Scraptown | Registered with UFD as "Shortchassis" 2698 | -9/Scraptown | Visited Cyclists 2707 | -9/Scraptown | Entered Cyclist Reading Room 2712 | -9/Scraptown | Learned location of Zion (-7) 2790 | -9/Scraptown | Visited A0-MCA Data Center 2836 | -9/Scraptown | Visited Curators Association 2854 | -9/Scraptown | Visited Scrapoid Pod Storage 3036 | -9/Scraptown | Visited Scrap Suit Storage 3049 | -9/Scraptown | Found Scrap Suit 3055 | -9/Scraptown | Found Scrap Suit 3079 | -9/Scraptown | Visited Infowarlord's Domain 3091 | -9/Scraptown | Found Exp. Sensor Array 3111 | -9/Scraptown | Visited DA-N13 Charitable Foundation 3128 | -9/Scraptown | Visited Research Penetration Think Tank 3154 | -9/Scraptown | Visited Observation Area 3207 | -9/Scraptown | Visited Analyses Database 3236 | -9/Scraptown | Visited Cartography Club 3362 | -9/Scraptown | Met Optimus 3362 | -9/Scraptown | Accepted into 0bPrime 3447 | -9/Scraptown | Discovered new exit (range 3) 3452 | -9/Scraptown | Entered Factory 3452 | -6/Factory | Evolved 6 slots: Propulsion x1, Utility x3, Weapon x2 3627 | -6/Factory | Garrison activated, responded to threat 3753 | -6/Factory | Lost 8 parts (1p3n4w) 3840 | -6/Factory | Lost 3 parts (1n1u1w) 4086 | -6/Factory | Garrison activated, responded to threat 4146 | -6/Factory | Discovered new exit (range 13) 4197 | -6/Factory | Entered Extension 4270 | -6/Extension | Build established: Scavenger-Gunner 4463 | -6/Extension | Lost 3 allies 4504 | -6/Extension | Rescued A7 4698 | -6/Extension | Spotted B-75 Beast 4719 | -6/Extension | Spotted B-75 Beast 4732 | -6/Extension | Allies destroyed B-75 Beast 4745 | -6/Extension | Allies destroyed B-75 Beast 4767 | -6/Extension | Discovered new exit (range 3) 4810 | -6/Extension | Entered Factory 4810 | -5/Factory | Accompanied by 5 allies (A7) 4810 | -5/Factory | Evolved 2 slots: Utility x1, Weapon x1 5034 | -5/Factory | Lost 3 allies 5065 | -5/Factory | Loaded intel: 8 recycling unit locations 5233 | -5/Factory | Learned location of Protoforge (-2) 5410 | -5/Factory | Lost 3 parts (1p1n1w) 5503 | -5/Factory | Cargo convoy interrupted 5637 | -5/Factory | Core integrity fell below 50% 5652 | -5/Factory | Core integrity fell below 20% 5679 | -5/Factory | Lost 21 parts (1p4n5u11w) 5693 | -5/Factory | Scrapoids reinforcements arrived? 5705 | -5/Factory | System corruption reached 10% 5710 | -5/Factory | First assault squad dispatched 6023 | -5/Factory | Build established: Scavenger-Tank 6217 | -5/Factory | Destroyed by P-70 Sage with Tesla Rifle Last Messages --------------- 06207_ K-01 Serf collects debris. 06208_ Imp. Arc Projector destroyed. 06209_ Slug penetrates P-70 Sage. 06210_ K-01 Serf collects debris. 06211_ U-05 Engineer lays Concrete. 06212_ Destroyed Antigrav System. 06212_ Destroyed Tesla Rifle. 06212_ Slug penetrates Garrison Access. 06213_ Targeting Computer destroyed. 06214_ R-10 Processor collects Transmission Jammer. 06214_ K-01 Serf collects debris. 06214_ U-05 Engineer lays Concrete. 06216_ System corrupted: Beamcaster failed to cycle. 06216_ Slug penetrates P-70 Sage. 06216_ Slug penetrates Wall. 06216_ K-01 Serf collects debris. 06216_ U-05 Engineer lays Concrete. 06217_ R-10 Processor collects Flexi-carbon Leg. Map ----- +----------------------------------------------------+ | ?????????????# ##%% # "" """ | | ?????????????# # # "T """ ## | | ?????????????# # # "" """ ## | | ?????????????# # % # !% ## | | ?????????????# # #######+######### | | ?????????????# # % # [[*=% ! #??? | | ?????????????# # %% # =%= #??? | | ?????????????# # # ! #??? | | ?????????????# ## # #??? | | ?????????????# ## % # #??? | | ?????????????# ## + ! ! #??? | | ?????????????# ## % # #??? | | ?????????????# ## % t # #??? | | ?????????????# ##%% %% # #??? | | ?????????????# ## % # ! = #??? | | ?????????????# ##%! # #??? | | ?????????????+ ##! % % # #??? | | ?????????????# ##| %% ##############??? | | ?????????????# ## % %[=% #???????????????? | | ?????????????# T#! #;!!## ###???????????????? | | ?????????????# #%=m#;%=;# #?????????????????? | | ?????????????# ##!#;#;#;##+#####?????????????? | | ?????????????# ## # =* #?????????????? | | ???????"""""?# "# #""pp ! #?????????????? | | ???????""Y""?# ## #""* #?????????????? | | ?????????????# ## #G @ #?????????????? | | ?????????????+ ! #" R #?????????????? | | ?????????????# #"R ! [ #?????????????? | | ?????????????# [!! /u ! k #?????????????? | | ?????????????# [!! ! # #?????????????? | | ?????????????# [!! # k ;#????????????? | | ?????????????# # ;#????????????? | | ?????????????# # ;#????????????? | | ?????????????# # ;#????????????? | | ?????????????##+###+####;; ;;;#????????????? | | ??????????????????????? # ###????????????? | | ??????????????????????? ? # # #??????????????? | | ??????????????????????? ?#########??????????????? | | ?????????????????""""""" ????????????????????????? | | ?????????????????""""""" ????????????????????????? | | ?????????????????""""""" ????????????????????????? | | ?????????????????"""""""?????????????????????????? | | ?????????????????????????????????????????????????? | | | | | | | | | | | | | | | +----------------------------------------------------+ Best States ------------- Heat Dissipation 54 Energy Generation 18 Energy Capacity 310 Matter Stores 550 Matter Capacity 550 Sight Range 16 Robot Scan Range 20 Terrain Scan Density 10 Jamming Range 12 Armor Coverage 600 Propulsion Shielding 33 Phase Shifting 5 Evasion (%) 55 Targeting Accuracy 11 Recoil Reduction 3 Offensive Hacking 10 Item Schematics ----------------- Carbon-fiber Leg | -6/Factory | Scanalyzed Robot Schematics ------------------ None Fabricated ------------ Nothing Repaired ---------- Aluminum Leg | 28% | -9/Storage Lgt. Armor Plating | 63% | -9/Storage Alien Tech Used ----------------- None Achievements -------------- Party Time Challenges ------------ None Game ------ Seed StrikeRemoteConstruct Manual? 0 Play Time 01:26:32 Cumulative 50.1 hours Start 2025.08.10 @ 16:25:11 End 2025.08.10 @ 18:01:47 Sessions 1 Manual Loads 0 Difficulty Rogue Special Mode None Game No. 30 Rogue 26 Adventurer 4 Explorer 0 Win Type - Total 0 Types 0/0/0/0/0/0/0/0/0/0 Lore% 38 Gallery% 35 Achievement% 30 Wizard Run 0 Options --------- Layout 1 ASCII 0 Keyboard 0 Movement Numpad Keybinds 1 Fullscreen 1 Font 24/Smallcaps Map View 50x35 Zoom Use 0% Tactical HUD 1 Map Filters NONE Filters NONE Steam 1 RUN: 6a718ea2-cc2c-4a28-afd9-91ce20945a9d